fUSD/lending_fUSD_20240611
["ID","MTS","AMOUNT","RATE_DAILY","PERIOD"]
[329160589,1718143863093,-151.0,0.00021917,2]
[329160590,1718143863108,-151.0,0.00021917,2]
[329160591,1718143863122,-500.0,0.00021917,2]
[329160592,1718143863140,-817.72,0.00021917,2]
[329160593,1718143863158,-151.0,0.00021917,2]
[329160594,1718143863172,-151.0,0.00021917,2]
[329160595,1718143863184,-151.0,0.00021917,2]
[329160596,1718143863195,-216.125456,0.00021917,2]
[329160597,1718143863213,-1365.66,0.00021917,2]
[329160598,1718143863224,-6104.03,0.00021917,2]
[329160599,1718143863234,-500.0,0.00021917,2]
[329160600,1718143863245,-2309.94,0.00021917,2]
[329160601,1718143863259,-500.0,0.00021917,2]
[329160602,1718143863269,-500.0,0.00021917,2]
[329160603,1718143863282,-4703.41,0.00021917,2]
[329160604,1718143863294,-1384.63,0.00021917,2]
[329160605,1718143863304,-500.0,0.00021917,2]
[329160606,1718143863332,-500.0,0.00021917,2]
[329160607,1718143863343,-500.0,0.00021917,2]
[329160608,1718143863354,-8942.09,0.00021917,2]
[329160609,1718143863367,-3334.85,0.00021917,2]
[329160610,1718143863380,-4836.3,0.00021917,2]
[329160611,1718143863400,-500.0,0.00021917,2]
[329160612,1718143863410,-522.25074498,0.00021917,2]
[329160613,1718143863425,-559.50243922,0.00021917,2]
[329160614,1718143863444,-1069.62,0.00021917,2]
[329160615,1718143863458,-500.0,0.00021917,2]
[329160616,1718143863496,-13084.16,0.00021917,2]
[329160617,1718143863512,-151.0,0.00021917,2]
[329160618,1718143863524,-151.0,0.00021917,2]
[329160619,1718143863535,-151.0,0.00021917,2]
[329160620,1718143863546,-151.0,0.00021917,2]
[329160621,1718143863558,-500.0,0.00021917,2]
[329160622,1718143863575,-880.74,0.00021917,2]
[329160623,1718143863586,-500.0,0.00021917,2]
[329160624,1718143863606,-4364.96,0.00021917,2]
[329160625,1718143863633,-151.0,0.00021917,2]
[329160626,1718143863645,-151.0,0.00021917,2]
[329160627,1718143863656,-151.0,0.00021917,2]
[329160628,1718143863666,-5165.83,0.00021917,2]
[329160629,1718143863678,-500.0,0.00021917,2]
[329160630,1718143863690,-500.0,0.00021917,2]
[329160631,1718143863701,-151.0,0.00021917,2]
[329160632,1718143863713,-500.0,0.00021917,2]
[329160633,1718143863727,-151.0,0.00021917,2]
[329160634,1718143863753,-500.0,0.00021917,2]
[329160635,1718143863764,-2093.23,0.00021917,2]
[329160636,1718143863775,-640.39151555,0.00021917,2]
[329160637,1718143863788,-2186.13,0.00021917,2]
[329160638,1718143863798,-264.892849,0.00021917,2]
[329160639,1718143863810,-500.0,0.00021917,2]
[329160640,1718143863820,-500.0,0.00021917,2]
[329160641,1718143863832,-798.05,0.00021917,2]
[329160642,1718143863844,-528.5934403,0.00021917,2]
[329160643,1718143863855,-500.0,0.00021917,2]
[329160644,1718143863866,-507.02976262,0.00021917,2]
[329160645,1718143863877,-1671.48,0.00021917,2]
[329160646,1718143863896,-500.0,0.00021917,2]
[329160647,1718143863908,-151.0,0.00021917,2]
[329160648,1718143863923,-762.78,0.00021917,2]
[329160649,1718143863951,-1343.72,0.00021917,2]
[329160650,1718143863966,-501.42867605,0.00021917,2]
[329160651,1718143863983,-5193.52,0.00021917,2]
[329160652,1718143863996,-2543.48,0.00021917,2]
[329160653,1718143864008,-6090.41,0.00021917,2]
[329160654,1718143864028,-500.0,0.00021917,2]
[329160655,1718143864040,-500.0,0.00021917,2]
[329160656,1718143864076,-5608.46,0.00021917,2]
[329160657,1718143864088,-2774.33,0.00021917,2]
[329160658,1718143864108,-500.0,0.00021917,2]
[329160659,1718143864138,-500.0,0.00021917,2]
[329160660,1718143864157,-615.09784367,0.00021917,2]
[329160661,1718143864180,-500.0,0.00021917,2]
[329160662,1718143864191,-524.57990527,0.00021917,2]
[329160663,1718143864202,-500.0,0.00021917,2]
[329160664,1718143864219,-500.0,0.00021917,2]
[329160665,1718143864235,-16231.51,0.00021917,2]
[329160666,1718143864248,-1459.33,0.00021917,2]
[329160667,1718143864262,-1816.15,0.00021917,2]
[329160668,1718143864280,-1058.00925592,0.00021917,2]
[329160669,1718143864304,-4714.6,0.00021917,2]
[329160670,1718143864326,-3510.99,0.00021917,2]
[329160671,1718143864337,-504.95891365,0.00021917,2]
[329160672,1718143864356,-5737.42,0.00021917,2]
[329160673,1718143864372,-1065.02,0.00021917,2]
[329160674,1718143864385,-500.0,0.00021917,2]
[329160675,1718143864403,-500.0,0.00021917,2]
[329160676,1718143864415,-500.0,0.00021917,2]
[329160677,1718143864426,-500.0,0.00021917,2]
[329160678,1718143864437,-2341.8,0.00021917,2]
[329160679,1718143864450,-500.0,0.00021917,2]
[329160680,1718143864462,-968.44,0.00021917,2]
[329160681,1718143864475,-500.0,0.00021917,2]
[329160682,1718143864487,-500.0,0.00021917,2]
[329160683,1718143864500,-1408.24,0.00021917,2]
[329160684,1718143864510,-4327.87,0.00021917,2]
[329160685,1718143864522,-500.0,0.00021917,2]
[329160686,1718143864534,-500.0,0.00021917,2]
[329160687,1718143864544,-500.0,0.00021917,2]
[329160688,1718143864554,-500.0,0.00021917,2]
[329160689,1718143864574,-1863.5,0.00021917,2]
[329160690,1718143864599,-330.34484828,0.00021917,2]
[329160691,1718143864623,-2194.68,0.00021917,2]
[329160692,1718143864640,-1058.76,0.00021917,2]
[329160693,1718143864653,-500.0,0.00021917,2]
[329160694,1718143864671,-1340.35,0.00021917,2]
[329160695,1718143864682,-500.0,0.00021917,2]
[329160696,1718143864696,-500.0,0.00021917,2]
[329160697,1718143864707,-527.9013874,0.00021917,2]
[329160698,1718143864717,-500.0,0.00021917,2]
[329160699,1718143864728,-500.0,0.00021917,2]
[329160700,1718143864738,-500.0,0.00021917,2]
[329160701,1718143864752,-500.0,0.00021917,2]
[329160702,1718143864766,-4027.9,0.00021917,2]
[329160703,1718143864779,-1254.49,0.00021917,2]
[329160704,1718143864790,-4892.47,0.00021917,2]
[329160705,1718143864800,-500.0,0.00021917,2]
[329160706,1718143864811,-500.0,0.00021917,2]
[329160707,1718143864822,-858.69,0.00021917,2]
[329160708,1718143864848,-500.0,0.00021917,2]
[329160709,1718143864862,-665.86,0.00021917,2]
[329160710,1718143864876,-500.0,0.00021917,2]
[329160711,1718143864887,-500.0,0.00021917,2]
[329160712,1718143864897,-155.116449,0.00021917,2]
[329160713,1718143864909,-500.0,0.00021917,2]
[329160714,1718143864919,-646.78,0.00021917,2]
[329160715,1718143864935,-500.0,0.00021917,2]
[329160716,1718143864946,-493.56,0.00021918,2]
[329160717,1718143864957,-149940.0,0.00021918,2]
[329160718,1718143864968,-3190.0,0.00021918,2]
[329160719,1718143864978,-2059.0,0.00021918,2]
[329160720,1718143864989,-250.0,0.00021918,2]
[329160721,1718143865000,-834.28,0.00021918,2]
[329160722,1718143865011,-151.0,0.00021918,2]
[329160723,1718143865022,-151.0,0.00021918,2]
[329160724,1718143865033,-151.0,0.00021918,2]
[329160725,1718143865048,-151.0,0.00021918,2]
[329160726,1718143865059,-151.0,0.00021918,2]
[329160727,1718143865070,-151.0,0.00021918,2]
[329160728,1718143865082,-151.0,0.00021918,2]
[329160729,1718143865096,-151.0,0.00021918,2]
[329160730,1718143865109,-151.0,0.00021918,2]
[329160731,1718143865120,-151.0,0.00021918,2]
[329160732,1718143865134,-151.0,0.00021918,2]
[329160733,1718143865145,-151.0,0.00021918,2]
[329160734,1718143865156,-254.82975,0.00021918,2]
[329160735,1718143865166,-150.0,0.00021918,2]
[329160736,1718143865183,-150.0,0.00021918,2]
[329160737,1718143865196,-150.0,0.00021918,2]
[329160738,1718143865208,-150.0,0.00021918,2]
[329160739,1718143865219,-259.10014,0.00021918,7]
[329160740,1718143865229,-151.0,0.00021918,7]
[329160741,1718143865240,-151.0,0.00021918,7]
[329160742,1718143865253,-321.942386,0.00021918,7]
[329160743,1718143865264,-321.942386,0.00021918,7]
[329160744,1718143865275,-151.0,0.00021918,7]
[329160745,1718143865288,-195.942518,0.00021918,7]
[329160746,1718143865308,-158.264894,0.00021918,7]
[329160747,1718143865320,-195.942518,0.00021918,7]
[329160748,1718143865332,-151.0,0.00021918,7]
[329160749,1718143865344,-151.0,0.00021918,7]
[329160750,1718143865354,-151.0,0.00021918,7]
[329160751,1718143865366,-151.0,0.00021918,7]
[329160752,1718143865380,-150.0,0.00021929,2]
[329160753,1718143865391,-150.0,0.00021935,2]
[329160754,1718143865403,-150.0,0.00021938,2]
[329160755,1718143865414,-150.0,0.00021943,2]
[329160756,1718143865425,-1500.0,0.00021949,2]
[329160757,1718143865437,-300.0,0.00021952,2]
[329160758,1718143865449,-1500.0,0.00021961,2]
[329160759,1718143865463,-150.0,0.00021965,2]
[329160760,1718143865475,-500.0,0.0002197,2]
[329160761,1718143865487,-151.0,0.00021973,2]
[329160762,1718143865499,-150.0,0.00021977,2]
[329160763,1718143865511,-150.0,0.0002198,2]
[329160764,1718143865523,-150.0,0.00021983,2]
[329160765,1718143865534,-790.20472017,0.00022,2]
[329160766,1718143865545,-160.0,0.00022,2]
[329160767,1718143865556,-978.0,0.00022,4]
[329160768,1718143865567,-611.0,0.00022,2]
[329160769,1718143865579,-530.8723,0.00022,2]
[329160770,1718143865591,-1002.7069,0.00022,2]
[329160771,1718143865603,-1500.0,0.00022009,2]
[329160772,1718143865615,-150.0,0.00022017,2]
[329160773,1718143865637,-652.72,0.00022018,2]
[329160774,1718143865652,-1500.0,0.0002202,2]
[329160775,1718143865663,-150.0,0.00022023,2]
[329160776,1718143865675,-150.0,0.00022025,2]
[329160777,1718143865687,-652.72,0.00022053,2]
[329160778,1718143865698,-652.72,0.00022053,2]
[329160779,1718143865711,-652.72,0.00022053,2]
[329160780,1718143865724,-652.72,0.00022053,2]
[329160781,1718143865734,-150.0,0.00022053,10]
[329160782,1718143865746,-150.0,0.00022053,7]
[329160783,1718143865758,-573.7,0.00022054,2]
[329160784,1718143865769,-500.0,0.00022054,2]
[329160785,1718143865781,-529.9722669,0.00022054,2]
[329160786,1718143865793,-589.07,0.00022054,2]
[329160787,1718143865805,-500.0,0.00022054,2]
[329160788,1718143865818,-500.0,0.00022054,2]
[329160789,1718143865831,-878.71,0.00022054,2]
[329160790,1718143865842,-502.9808947,0.00022054,2]
[329160791,1718143865855,-500.0,0.00022054,2]
[329160792,1718143865867,-500.0,0.00022054,2]
[329160793,1718143865888,-500.0,0.00022054,2]
[329160794,1718143865901,-708.35,0.00022054,2]
[329160795,1718143865913,-500.0,0.00022054,2]
[329160796,1718143865925,-500.0,0.00022054,2]
[329160797,1718143865936,-661.26,0.00022054,2]
[329160798,1718143865947,-500.0,0.00022054,2]
[329160799,1718143865958,-500.0,0.00022054,2]
[329160800,1718143865969,-500.0,0.00022054,2]
[329160801,1718143865980,-500.0,0.00022054,2]
[329160802,1718143865992,-500.0,0.00022054,2]
[329160803,1718143866003,-500.0,0.00022054,2]
[329160804,1718143866014,-682.09,0.00022054,2]
[329160805,1718143866026,-500.0,0.00022054,2]
[329160806,1718143866037,-500.0,0.00022054,2]
[329160807,1718143866048,-539.0,0.00022054,2]
[329160808,1718143866060,-500.0,0.00022054,2]
[329160809,1718143866072,-500.0,0.00022054,2]
[329160810,1718143866083,-500.0,0.00022054,2]
[329160811,1718143866098,-500.0,0.00022054,2]
[329160812,1718143866108,-500.0,0.00022054,2]
[329160813,1718143866119,-500.0,0.00022054,2]
[329160814,1718143866131,-500.0,0.00022054,2]
[329160815,1718143866144,-500.0,0.00022054,2]
[329160816,1718143866155,-500.0,0.00022054,2]
[329160817,1718143866390,-500.0,0.00022054,2]
[329160818,1718143866402,-500.0,0.00022054,2]
[329160819,1718143866412,-515.19444625,0.00022054,2]
[329160820,1718143866422,-500.0,0.00022054,2]
[329160821,1718143866432,-500.0,0.00022054,2]
[329160822,1718143866443,-500.0,0.00022054,2]
[329160823,1718143866453,-191.76849709,0.00022054,2]
[329160824,1718143866464,-500.0,0.00022054,2]
[329160825,1718143866474,-500.0,0.00022054,2]
[329160826,1718143866484,-794.24,0.00022054,2]
[329160827,1718143866494,-500.0,0.00022054,2]
[329160828,1718143866505,-500.0,0.00022054,2]
[329160829,1718143866514,-500.0,0.00022054,2]
[329160830,1718143866525,-160.87079334,0.00022054,2]
[329160831,1718143866535,-633.11,0.00022054,2]
[329160832,1718143866545,-500.0,0.00022054,2]
[329160833,1718143866555,-500.0,0.00022054,2]
[329160834,1718143866566,-500.0,0.00022054,2]
[329160835,1718143866576,-818.17,0.00022054,2]
[329160836,1718143866586,-500.0,0.00022054,2]
[329160837,1718143866596,-500.0,0.00022054,2]
[329160838,1718143866607,-500.0,0.00022054,2]
[329160839,1718143866617,-500.0,0.00022054,2]
[329160840,1718143866635,-500.0,0.00022054,2]
[329160841,1718143866648,-500.0,0.00022054,2]
[329160842,1718143866658,-500.0,0.00022054,2]
[329160843,1718143866668,-500.0,0.00022054,2]
[329160844,1718143866679,-212.11124298,0.00022054,2]
[329160845,1718143866690,-196.03838572,0.00022054,2]
[329160846,1718143866700,-500.0,0.00022054,2]
[329160847,1718143866710,-582.18,0.00022054,2]
[329160848,1718143866720,-500.0,0.00022054,2]
[329160849,1718143866731,-665.24,0.00022054,2]
[329160850,1718143866742,-974.61,0.00022054,2]
[329160851,1718143866752,-500.0,0.00022054,2]
[329160852,1718143866763,-500.0,0.00022054,2]
[329160853,1718143866774,-500.0,0.00022054,2]
[329160854,1718143866784,-500.0,0.00022054,2]
[329160855,1718143866794,-524.27,0.00022054,2]
[329160856,1718143866804,-500.0,0.00022054,2]
[329160857,1718143866814,-500.0,0.00022054,2]
[329160858,1718143866825,-500.0,0.00022054,2]
[329160859,1718143866836,-500.0,0.00022054,2]
[329160860,1718143866846,-776.34,0.00022054,2]
[329160861,1718143866856,-608.01,0.00022054,2]
[329160862,1718143866867,-500.0,0.00022054,2]
[329160863,1718143866880,-1304.52,0.00022054,2]
[329160864,1718143866890,-500.0,0.00022054,2]
[329160865,1718143866900,-500.0,0.00022054,2]
[329160866,1718143866910,-500.0,0.00022054,2]
[329160867,1718143866921,-500.0,0.00022054,2]
[329160868,1718143866933,-500.0,0.00022054,2]
[329160869,1718143866944,-630.83,0.00022054,2]
[329160870,1718143866963,-500.0,0.00022054,2]
[329160871,1718143866975,-500.0,0.00022054,2]
[329160872,1718143866986,-500.0,0.00022054,2]
[329160873,1718143867010,-500.0,0.00022054,2]
[329160874,1718143867020,-500.0,0.00022054,2]
[329160875,1718143867031,-500.0,0.00022054,2]
[329160876,1718143867042,-500.0,0.00022054,2]
[329160877,1718143867054,-500.0,0.00022054,2]
[329160878,1718143867066,-1295.45,0.00022054,2]
[329160879,1718143867081,-500.0,0.00022054,2]
[329160880,1718143867094,-858.84,0.00022054,2]
[329160881,1718143867108,-500.0,0.00022054,2]
[329160882,1718143867121,-500.0,0.00022054,2]
[329160883,1718143867133,-718.91,0.00022054,2]
[329160884,1718143867145,-500.0,0.00022054,2]
[329160885,1718143867156,-500.0,0.00022054,2]
[329160886,1718143867166,-996.8,0.00022054,2]
[329160887,1718143867180,-500.0,0.00022054,2]
[329160888,1718143867191,-500.0,0.00022054,2]
[329160889,1718143867203,-648.46,0.00022054,2]
[329160890,1718143867213,-924.63,0.00022054,2]
[329160891,1718143867224,-500.0,0.00022054,2]
[329160892,1718143867234,-500.0,0.00022054,2]
[329160893,1718143867245,-500.0,0.00022054,2]
[329160894,1718143867255,-660.23,0.00022054,2]
[329160895,1718143867266,-735.42,0.00022054,2]
[329160896,1718143867277,-500.0,0.00022054,2]
[329160897,1718143867288,-500.0,0.00022054,2]
[329160898,1718143867298,-500.0,0.00022054,2]
[329160899,1718143867309,-552.07,0.00022054,2]
[329160900,1718143867319,-932.37,0.00022054,2]
[329160901,1718143867329,-500.0,0.00022054,2]
[329160902,1718143867339,-500.0,0.00022054,2]
[329160903,1718143867349,-500.0,0.00022054,2]
[329160904,1718143867359,-948.43,0.00022054,2]
[329160905,1718143867369,-500.0,0.00022054,2]
[329160906,1718143867382,-655.21,0.00022054,2]
[329160907,1718143867392,-500.0,0.00022054,2]
[329160908,1718143867402,-500.0,0.00022054,2]
[329160909,1718143867412,-500.0,0.00022054,2]
[329160910,1718143867423,-790.57,0.00022054,2]
[329160911,1718143867434,-500.0,0.00022054,2]
[329160912,1718143867445,-1461.45,0.00022054,2]
[329160913,1718143867456,-1010.47,0.00022054,2]
[329160914,1718143867467,-1048.44,0.00022054,2]
[329160915,1718143867477,-500.0,0.00022054,2]
[329160916,1718143867488,-500.0,0.00022054,2]
[329160917,1718143867498,-500.0,0.00022054,2]
[329160918,1718143867508,-500.0,0.00022054,2]
[329160919,1718143867518,-500.0,0.00022054,2]
[329160920,1718143867529,-762.58,0.00022054,2]
[329160921,1718143867540,-500.0,0.00022054,2]
[329160922,1718143867551,-500.0,0.00022054,2]
[329160923,1718143867562,-500.0,0.00022054,2]
[329160924,1718143867572,-668.93,0.00022054,2]
[329160925,1718143867584,-694.86,0.00022054,2]
[329160926,1718143867596,-446.15434713,0.00022054,2]
[329160927,1718143867608,-500.0,0.00022054,2]
[329160928,1718143867622,-500.0,0.00022054,2]
[329160929,1718143867645,-500.0,0.00022054,2]
[329160930,1718143867656,-1737.83,0.00022054,2]
[329160931,1718143867667,-500.0,0.00022054,2]
[329160932,1718143867677,-1059.25,0.00022054,2]
[329160933,1718143867689,-500.0,0.00022054,2]
[329160934,1718143867700,-522.51,0.00022054,2]
[329160935,1718143867712,-1363.71,0.00022054,2]
[329160936,1718143867722,-500.0,0.00022054,2]
[329160937,1718143867734,-523.31609713,0.00022054,2]
[329160938,1718143867744,-500.0,0.00022054,2]
[329160939,1718143867755,-500.0,0.00022054,2]
[329160940,1718143867765,-871.41,0.00022054,2]
[329160941,1718143867776,-888.26,0.00022054,2]
[329160942,1718143867787,-685.03,0.00022054,2]
[329160943,1718143867797,-500.0,0.00022054,2]
[329160944,1718143867809,-789.02,0.00022054,2]
[329160945,1718143867821,-500.0,0.00022054,2]
[329160946,1718143867831,-500.0,0.00022054,2]
[329160947,1718143867841,-889.87,0.00022054,2]
[329160948,1718143867853,-559.67,0.00022054,2]
[329160949,1718143867864,-500.0,0.00022054,2]
[329160950,1718143867876,-500.0,0.00022054,2]
[329160951,1718143867891,-808.09,0.00022054,2]
[329160952,1718143867901,-457.0,0.00022054,2]
[329160953,1718143867912,-561.74,0.00022054,2]
[329160954,1718143867923,-1272.78,0.00022054,2]
[329160955,1718143867933,-507.390247,0.00022054,2]
[329160956,1718143867944,-1149.78,0.00022054,2]
[329160957,1718143867955,-625.85,0.00022054,2]
[329160958,1718143867966,-500.0,0.00022054,2]
[329160959,1718143867982,-2216.96,0.00022054,2]
[329160960,1718143867993,-531.26,0.00022054,2]
[329160961,1718143868004,-925.96,0.00022054,2]
[329160962,1718143868035,-500.0,0.00022054,2]
[329160963,1718143868048,-500.0,0.00022054,2]
[329160964,1718143868059,-500.0,0.00022054,2]
[329160965,1718143868070,-500.0,0.00022054,2]
[329160966,1718143868081,-969.45,0.00022054,2]
[329160967,1718143868095,-2491.09,0.00022054,2]
[329160968,1718143868106,-1570.24,0.00022054,2]
[329160969,1718143868118,-1631.05,0.00022054,2]
[329160970,1718143868130,-500.0,0.00022054,2]
[329160971,1718143868142,-500.0,0.00022054,2]
[329160972,1718143868152,-926.19,0.00022054,2]
[329160973,1718143868166,-500.0,0.00022054,2]
[329160974,1718143868179,-500.0,0.00022054,2]
[329160975,1718143868190,-502.23,0.00022054,2]
[329160976,1718143868202,-812.63,0.00022054,2]
[329160977,1718143868213,-511.15,0.00022054,2]
[329160978,1718143868224,-500.0,0.00022054,2]
[329160979,1718143868235,-500.0,0.00022054,2]
[329160980,1718143868246,-500.0,0.00022054,2]
[329160981,1718143868257,-2452.95,0.00022054,2]
[329160982,1718143868269,-782.31,0.00022054,2]
[329160983,1718143868283,-961.94,0.00022054,2]
[329160984,1718143868294,-2101.79,0.00022054,2]
[329160985,1718143868305,-500.0,0.00022054,2]
[329160986,1718143868316,-517.76380451,0.00022054,2]
[329160987,1718143868329,-500.0,0.00022054,2]
[329160988,1718143868341,-688.94,0.00022054,2]
[329160989,1718143868357,-529.93,0.00022054,2]
[329160990,1718143868372,-1187.22,0.00022054,2]
[329160991,1718143868387,-500.0,0.00022054,2]
[329160992,1718143868399,-500.0,0.00022054,2]
[329160993,1718143868412,-250.0,0.00022054,2]
[329160994,1718143868423,-500.0,0.00022054,2]
[329160995,1718143868442,-500.0,0.00022054,2]
[329160996,1718143868459,-500.0,0.00022054,2]
[329160997,1718143868470,-500.0,0.00022054,2]
[329160998,1718143868489,-500.0,0.00022054,2]
[329160999,1718143868501,-1063.98,0.00022054,2]
[329161000,1718143868513,-500.0,0.00022054,2]
[329161001,1718143868525,-500.0,0.00022054,2]
[329161002,1718143868546,-500.0,0.00022054,2]
[329161003,1718143868557,-500.0,0.00022054,2]
[329161004,1718143868569,-682.5,0.00022054,2]
[329161005,1718143868584,-500.0,0.00022054,2]
[329161006,1718143868595,-2395.83,0.00022054,2]
[329161007,1718143868609,-520.61,0.00022054,2]
[329161008,1718143868632,-619.37,0.00022054,2]
[329161009,1718143868648,-500.0,0.00022054,2]
[329161010,1718143868660,-500.0,0.00022054,2]
[329161011,1718143868671,-20000.0,0.00022054,2]
[329161012,1718143868682,-1674.91,0.00022054,2]
[329161013,1718143868695,-1370.7,0.00022054,2]
[329161014,1718143868707,-627.51,0.00022054,2]
[329161015,1718143868720,-1254.33,0.00022054,2]
[329161016,1718143868732,-729.01,0.00022054,2]
[329161017,1718143868752,-711.92,0.00022054,2]
[329161018,1718143868772,-500.0,0.00022054,2]
[329161019,1718143868798,-500.0,0.00022054,2]
[329161020,1718143868809,-548.35,0.00022054,2]
[329161021,1718143868821,-1114.19,0.00022054,2]
[329161022,1718143868833,-500.0,0.00022054,2]
[329161023,1718143868850,-500.0,0.00022054,2]
[329161024,1718143868870,-500.0,0.00022054,2]
[329161025,1718143868886,-500.0,0.00022054,2]
[329161026,1718143868896,-500.0,0.00022054,2]
[329161027,1718143868910,-500.0,0.00022054,2]
[329161028,1718143868926,-500.0,0.00022054,2]
[329161029,1718143868937,-1205.0,0.00022054,2]
[329161030,1718143868950,-1505.23,0.00022054,2]
[329161031,1718143868962,-500.0,0.00022054,2]
[329161032,1718143868973,-523.28761461,0.00022054,2]
[329161033,1718143868991,-1257.98,0.00022054,2]
[329161034,1718143869005,-393.3901016,0.00022054,2]
[329161035,1718143869025,-799.33,0.00022054,2]
[329161036,1718143869041,-500.0,0.00022054,2]
[329161037,1718143869054,-951.82,0.00022054,2]
[329161038,1718143869067,-500.0,0.00022054,2]
[329161039,1718143869077,-508.27,0.00022054,2]
[329161040,1718143869092,-616.27,0.00022054,2]
[329161041,1718143869106,-1828.46,0.00022054,2]
[329161042,1718143869118,-500.0,0.00022054,2]
[329161043,1718143869129,-500.0,0.00022054,2]
[329161044,1718143869141,-1268.83,0.00022054,2]
[329161045,1718143869151,-1206.02,0.00022054,2]
[329161046,1718143869162,-1189.9,0.00022054,2]
[329161047,1718143869174,-358.409523,0.00022054,7]
[329161048,1718143869186,-500.0,0.00022054,2]
[329161049,1718143869201,-500.0,0.00022054,2]
[329161050,1718143869213,-500.0,0.00022054,2]
[329161051,1718143869227,-358.409528,0.00022054,7]
[329161052,1718143869239,-500.0,0.00022054,2]
[329161053,1718143869250,-1336.01,0.00022054,2]
[329161054,1718143869261,-606.95,0.00022054,2]
[329161055,1718143869271,-500.0,0.00022054,2]
[329161056,1718143869283,-500.0,0.00022054,2]
[329161057,1718143869295,-1031.8,0.00022054,2]
[329161058,1718143869305,-837.69,0.00022054,2]
[329161059,1718143869318,-500.0,0.00022054,2]
[329161060,1718143869329,-612.07643356,0.00022054,2]
[329161061,1718143869339,-500.0,0.00022054,2]
[329161062,1718143869350,-658.91,0.00022054,2]
[329161063,1718143869360,-2239.74,0.00022054,2]
[329161064,1718143869371,-500.0,0.00022054,2]
[329161065,1718143869383,-814.64,0.00022054,2]
[329161066,1718143869393,-1037.17,0.00022054,2]
[329161067,1718143869404,-2160.05,0.00022054,2]
[329161068,1718143869414,-500.0,0.00022054,2]
[329161069,1718143869427,-500.0,0.00022054,2]
[329161070,1718143869438,-500.0,0.00022054,2]
[329161071,1718143869450,-500.0,0.00022054,2]
[329161072,1718143869461,-547.27235819,0.00022054,2]
[329161073,1718143869472,-500.0,0.00022054,2]
[329161074,1718143869482,-500.0,0.00022054,2]
[329161075,1718143869494,-632.13,0.00022054,2]
[329161076,1718143869504,-1509.17,0.00022054,2]
[329161077,1718143869521,-500.0,0.00022054,2]
[329161078,1718143869534,-948.43,0.00022054,2]
[329161079,1718143869554,-500.0,0.00022054,2]
[329161080,1718143869565,-500.0,0.00022054,2]
[329161081,1718143869577,-500.0,0.00022054,2]
[329161082,1718143869588,-1083.4335701,0.00022054,2]
[329161083,1718143869601,-2016.38,0.00022054,2]
[329161084,1718143869616,-500.0,0.00022054,2]
[329161085,1718143869646,-500.0,0.00022054,2]
[329161086,1718143869657,-939.94,0.00022054,2]
[329161087,1718143869669,-500.0,0.00022054,2]
[329161088,1718143869680,-528.71,0.00022054,2]